[Event "Titled Tuesday Blitz April 12 Late 2022"]
[White "Petrovic, Aleksa"]
[Black "Ward, Ieuan C"]
[WhiteFideId "967629"]
[BlackFideId "406627"]
[WhiteElo "2198"]
[BlackElo "2282"]
[Result "0-1"]
[Round "06"]
[TimeControl "180+1"]
[Date "2022.04.13"]
[WhiteClock "0:00:09"]
[BlackClock "0:00:07"]

1. c4 {[%clk 0:02:59]}  Nf6 {[%clk 0:02:56]} 2. Nc3 {[%clk 0:02:58]}  e6 {[%clk 0:02:56]} 3. d4 {[%clk 0:02:55]}  d5 {[%clk 0:02:55]} 4. Nf3 {[%clk 0:02:54]}  Be7 {[%clk 0:02:55]} 5. e3 {[%clk 0:02:47]}  O-O {[%clk 0:02:55]} 6. Bd2 {[%clk 0:02:47]}  b6 {[%clk 0:02:53]} 7. Rc1 {[%clk 0:02:46]}  Bb7 {[%clk 0:02:53]} 8. cxd5 {[%clk 0:02:40]}  Nxd5 {[%clk 0:02:52]} 9. Bd3 {[%clk 0:02:37]}  Nd7 {[%clk 0:02:47]} 10. Nxd5 {[%clk 0:02:27]}  exd5 {[%clk 0:02:46]} 11. Qc2 {[%clk 0:02:27]}  c5 {[%clk 0:02:41]} 12. Bxh7+ {[%clk 0:02:25]}  Kh8 {[%clk 0:02:42]} 13. Bf5 {[%clk 0:02:20]}  cxd4 {[%clk 0:02:40]} 14. Nxd4 {[%clk 0:02:08]}  Rc8 {[%clk 0:02:38]} 15. Bc3 {[%clk 0:02:03]}  Bb4 {[%clk 0:02:33]} 16. Qd2 {[%clk 0:01:52]}  Bxc3 {[%clk 0:02:32]} 17. Rxc3 {[%clk 0:01:52]}  Rxc3 {[%clk 0:02:21]} 18. Qxc3 {[%clk 0:01:53]}  Nc5 {[%clk 0:02:18]} 19. O-O {[%clk 0:01:48]}  Qg5 {[%clk 0:02:15]} 20. f4 {[%clk 0:01:41]}  Qf6 {[%clk 0:02:11]} 21. Rf3 {[%clk 0:01:36]}  g6 {[%clk 0:02:01]} 22. Rh3+ {[%clk 0:01:06]}  Kg7 {[%clk 0:01:57]} 23. Bc2 {[%clk 0:01:02]}  Bc8 {[%clk 0:01:37]} 24. Rg3 {[%clk 0:00:33]}  Ne4 {[%clk 0:01:17]} 25. Bxe4 {[%clk 0:00:32]}  dxe4 {[%clk 0:01:18]} 26. f5 {[%clk 0:00:26]}  Rh8 {[%clk 0:00:59]} 27. fxg6 {[%clk 0:00:23]}  fxg6 {[%clk 0:00:59]} 28. Qc7+ {[%clk 0:00:20]}  Qf7 {[%clk 0:00:48]} 29. Qe5+ {[%clk 0:00:20]}  Qf6 {[%clk 0:00:47]} 30. Qc7+ {[%clk 0:00:18]}  Qf7 {[%clk 0:00:47]} 31. Qxf7+ {[%clk 0:00:18]}  Kxf7 {[%clk 0:00:47]} 32. Rg5 {[%clk 0:00:17]}  Re8 {[%clk 0:00:38]} 33. Rd5 {[%clk 0:00:16]}  Kf6 {[%clk 0:00:20]} 34. Rd6+ {[%clk 0:00:15]}  Kg5 {[%clk 0:00:19]} 35. h3 {[%clk 0:00:13]}  Ba6 {[%clk 0:00:18]} 36. Kh2 {[%clk 0:00:13]}  Rc8 {[%clk 0:00:17]} 37. Kg3 {[%clk 0:00:13]}  Rc1 {[%clk 0:00:17]} 38. h4+ {[%clk 0:00:12]}  Kh6 {[%clk 0:00:17]} 39. Nf5+ {[%clk 0:00:11]}  Kh7 {[%clk 0:00:17]} 40. Rd7+ {[%clk 0:00:11]}  Kg8 {[%clk 0:00:17]} 41. Nh6+ {[%clk 0:00:10]}  Kf8 {[%clk 0:00:17]} 42. Kf4 {[%clk 0:00:10]}  Rf1+ {[%clk 0:00:16]} 43. Ke5 {[%clk 0:00:10]}  Bc4 {[%clk 0:00:15]} 44. Rxa7 {[%clk 0:00:09]}  Rb1 {[%clk 0:00:10]} 45. b3 {[%clk 0:00:08]}  Bd3 {[%clk 0:00:08]} 46. Ke6 {[%clk 0:00:07]}  Rc1 {[%clk 0:00:06]} 47. Rf7+ {[%clk 0:00:06]}  Ke8 {[%clk 0:00:06]} 48. Re7+ {[%clk 0:00:07]}  Kd8 {[%clk 0:00:06]} 49. Nf7+ {[%clk 0:00:07]}  Kc8 {[%clk 0:00:06]} 50. Nd6+ {[%clk 0:00:07]}  Kb8 {[%clk 0:00:06]} 51. Rb7+ {[%clk 0:00:07]}  Ka8 {[%clk 0:00:07]} 52. Rxb6 {[%clk 0:00:08]}  Rc5 {[%clk 0:00:05]} 53. Rb4 {[%clk 0:00:07]}  Rh5 {[%clk 0:00:04]} 54. Ra4+ {[%clk 0:00:07]}  Kb8 {[%clk 0:00:04]} 55. Rb4+ {[%clk 0:00:07]}  Ka8 {[%clk 0:00:04]} 56. g3 {[%clk 0:00:08]}  Rh8 {[%clk 0:00:03]} 57. Kd7 {[%clk 0:00:08]}  Rh7+ {[%clk 0:00:03]} 58. Kc6 {[%clk 0:00:08]}  Rh8 {[%clk 0:00:03]} 59. Ra4+ {[%clk 0:00:08]}  Kb8 {[%clk 0:00:04]} 60. Rb4+ {[%clk 0:00:08]}  Ka8 {[%clk 0:00:05]} 61. Kc7 {[%clk 0:00:07]}  Rh7+ {[%clk 0:00:04]} 62. Kb6 {[%clk 0:00:08]}  Kb8 {[%clk 0:00:04]} 63. Rd4 {[%clk 0:00:07]}  Rd7 {[%clk 0:00:04]} 64. Nc4 {[%clk 0:00:04]}  Rxd4 {[%clk 0:00:04]} 65. exd4 {[%clk 0:00:02]}  Bxc4 {[%clk 0:00:04]} 66. bxc4 {[%clk 0:00:03]}  e3 {[%clk 0:00:05]} 67. c5 {[%clk 0:00:03]}  e2 {[%clk 0:00:06]} 68. c6 {[%clk 0:00:04]}  e1=Q {[%clk 0:00:07]} 69. c7+ {[%clk 0:00:04]}  Kc8 {[%clk 0:00:07]} 70. d5 {[%clk 0:00:05]}  Qb4+ {[%clk 0:00:06]} 71. Kc6 {[%clk 0:00:06]}  Qa4+ {[%clk 0:00:06]} 72. Kd6 {[%clk 0:00:06]}  Qa6+ {[%clk 0:00:06]} 73. Ke5 {[%clk 0:00:04]}  Kxc7 {[%clk 0:00:07]} 74. g4 {[%clk 0:00:05]}  Qd6+ {[%clk 0:00:07]} 75. Ke4 {[%clk 0:00:06]}  Qg3 {[%clk 0:00:07]} 76. g5 {[%clk 0:00:05]}  Qxh4+ {[%clk 0:00:07]} 77. Ke5 {[%clk 0:00:06]}  Qxg5+ {[%clk 0:00:08]} 78. Ke6 {[%clk 0:00:06]}  Qg4+ {[%clk 0:00:07]} 79. Ke7 {[%clk 0:00:06]}  Qf4 {[%clk 0:00:07]} 80. a4 {[%clk 0:00:05]}  Qd6+ {[%clk 0:00:08]} 81. Kf7 {[%clk 0:00:06]}  g5 {[%clk 0:00:08]} 82. a5 {[%clk 0:00:05]}  g4 {[%clk 0:00:08]} 83. a6 {[%clk 0:00:06]}  Qxa6 {[%clk 0:00:08]} 84. d6+ {[%clk 0:00:05]}  Qxd6 {[%clk 0:00:09]} 85. Kg7 {[%clk 0:00:05]}  g3 {[%clk 0:00:09]} 86. Kf7 {[%clk 0:00:06]}  g2 {[%clk 0:00:09]} 87. Ke8 {[%clk 0:00:07]}  Qd7+ {[%clk 0:00:09]} 88. Kf8 {[%clk 0:00:08]}  Kd6 {[%clk 0:00:07]} 89. Kg8 {[%clk 0:00:08]}  Ke6 {[%clk 0:00:07]} 90. Kh8 {[%clk 0:00:09]}  Kf6 {[%clk 0:00:08]} 91. Kg8 {[%clk 0:00:09]}  Qg7# {[%clk 0:00:07]} 0-1


[Site "https://www.chess.com"]

[Event "Titled Tuesday Blitz April 12 Late 2022"]
[White "Petrovskyi, Vadym"]
[Black "Zhigalko, Sergei"]
[WhiteFideId "14165210"]
[BlackFideId "13502956"]
[WhiteElo "2400"]
[BlackElo "2662"]
[Result "1/2-1/2"]
[Round "06"]
[TimeControl "180+1"]
[Date "2022.04.12"]
[WhiteClock "0:00:14"]
[BlackClock "0:00:11"]

1. e4 {[%clk 0:03:00]}  c5 {[%clk 0:03:00]} 2. Nf3 {[%clk 0:03:01]}  Nc6 {[%clk 0:03:00]} 3. Bb5 {[%clk 0:03:00]}  Nf6 {[%clk 0:03:00]} 4. Bxc6 {[%clk 0:03:00]}  dxc6 {[%clk 0:03:01]} 5. d3 {[%clk 0:03:01]}  Bg4 {[%clk 0:03:02]} 6. h3 {[%clk 0:03:01]}  Bh5 {[%clk 0:03:02]} 7. Nbd2 {[%clk 0:02:58]}  Nd7 {[%clk 0:03:02]} 8. g4 {[%clk 0:02:58]}  Bg6 {[%clk 0:03:02]} 9. Nc4 {[%clk 0:02:59]}  Qc7 {[%clk 0:03:02]} 10. a4 {[%clk 0:02:56]}  b5 {[%clk 0:03:01]} 11. Ne3 {[%clk 0:02:54]}  e6 {[%clk 0:03:02]} 12. b3 {[%clk 0:02:52]}  Bd6 {[%clk 0:03:00]} 13. Bb2 {[%clk 0:02:52]}  f6 {[%clk 0:03:00]} 14. axb5 {[%clk 0:02:49]}  cxb5 {[%clk 0:03:00]} 15. Qd2 {[%clk 0:02:48]}  O-O {[%clk 0:02:58]} 16. O-O {[%clk 0:02:45]}  a6 {[%clk 0:02:21]} 17. Nh4 {[%clk 0:02:36]}  Bf7 {[%clk 0:02:19]} 18. Nhg2 {[%clk 0:02:36]}  Rfd8 {[%clk 0:02:08]} 19. f4 {[%clk 0:02:25]}  e5 {[%clk 0:02:09]} 20. Nf5 {[%clk 0:02:14]}  c4 {[%clk 0:01:55]} 21. bxc4 {[%clk 0:01:49]}  bxc4 {[%clk 0:01:53]} 22. dxc4 {[%clk 0:01:42]}  Bc5+ {[%clk 0:01:41]} 23. Kh1 {[%clk 0:01:42]}  Bxc4 {[%clk 0:01:31]} 24. Rfd1 {[%clk 0:01:36]}  Be6 {[%clk 0:01:12]} 25. Ba3 {[%clk 0:01:16]}  Bxa3 {[%clk 0:01:05]} 26. Rxa3 {[%clk 0:01:17]}  Nc5 {[%clk 0:01:06]} 27. Qe1 {[%clk 0:01:10]}  Rxd1 {[%clk 0:01:04]} 28. Qxd1 {[%clk 0:01:10]}  Nxe4 {[%clk 0:01:05]} 29. Qe2 {[%clk 0:01:04]}  Bxf5 {[%clk 0:00:36]} 30. gxf5 {[%clk 0:01:03]}  Qc6 {[%clk 0:00:09]} 31. fxe5 {[%clk 0:00:58]}  fxe5 {[%clk 0:00:10]} 32. Re3 {[%clk 0:00:58]}  Nf6 {[%clk 0:00:06]} 33. Rxe5 {[%clk 0:00:57]}  Rc8 {[%clk 0:00:07]} 34. Re6 {[%clk 0:00:56]}  Qxc2 {[%clk 0:00:06]} 35. Qe5 {[%clk 0:00:39]}  Rd8 {[%clk 0:00:03]} 36. Re7 {[%clk 0:00:33]}  Qd1+ {[%clk 0:00:02]} 37. Kh2 {[%clk 0:00:24]}  Qd6 {[%clk 0:00:03]} 38. Nf4 {[%clk 0:00:23]}  Qxe5 {[%clk 0:00:03]} 39. Rxe5 {[%clk 0:00:24]}  Ra8 {[%clk 0:00:03]} 40. Ra5 {[%clk 0:00:21]}  Ne4 {[%clk 0:00:03]} 41. Ne6 {[%clk 0:00:20]}  Nd6 {[%clk 0:00:03]} 42. Nc7 {[%clk 0:00:20]}  Ra7 {[%clk 0:00:02]} 43. Nxa6 {[%clk 0:00:17]}  Nxf5 {[%clk 0:00:02]} 44. Rxf5 {[%clk 0:00:15]}  Rxa6 {[%clk 0:00:03]} 45. Kg3 {[%clk 0:00:16]}  Rf6 {[%clk 0:00:04]} 46. Rb5 {[%clk 0:00:14]}  Rg6+ {[%clk 0:00:04]} 47. Kf4 {[%clk 0:00:14]}  h6 {[%clk 0:00:05]} 48. h4 {[%clk 0:00:14]}  Kh7 {[%clk 0:00:05]} 49. h5 {[%clk 0:00:15]}  Rg1 {[%clk 0:00:05]} 50. Ra5 {[%clk 0:00:14]}  Kg8 {[%clk 0:00:05]} 51. Rb5 {[%clk 0:00:12]}  Kf7 {[%clk 0:00:05]} 52. Rb7+ {[%clk 0:00:12]}  Ke6 {[%clk 0:00:06]} 53. Rb6+ {[%clk 0:00:13]}  Kd5 {[%clk 0:00:06]} 54. Rb5+ {[%clk 0:00:13]}  Kc4 {[%clk 0:00:05]} 55. Ra5 {[%clk 0:00:12]}  Kd4 {[%clk 0:00:04]} 56. Ra4+ {[%clk 0:00:12]}  Kd3 {[%clk 0:00:04]} 57. Ra5 {[%clk 0:00:12]}  Rf1+ {[%clk 0:00:03]} 58. Kg4 {[%clk 0:00:12]}  Ke4 {[%clk 0:00:03]} 59. Ra7 {[%clk 0:00:12]}  Ke5 {[%clk 0:00:02]} 60. Ra5+ {[%clk 0:00:11]}  Ke6 {[%clk 0:00:02]} 61. Ra6+ {[%clk 0:00:11]}  Ke7 {[%clk 0:00:02]} 62. Ra7+ {[%clk 0:00:12]}  Kf6 {[%clk 0:00:03]} 63. Ra6+ {[%clk 0:00:12]}  Kf7 {[%clk 0:00:03]} 64. Ra7+ {[%clk 0:00:13]}  Kg8 {[%clk 0:00:04]} 65. Kh4 {[%clk 0:00:11]}  Rf8 {[%clk 0:00:05]} 66. Rb7 {[%clk 0:00:11]}  Rf7 {[%clk 0:00:05]} 67. Rb8+ {[%clk 0:00:11]}  Kh7 {[%clk 0:00:05]} 68. Rb6 {[%clk 0:00:12]}  Rf4+ {[%clk 0:00:06]} 69. Kg3 {[%clk 0:00:12]}  Rf5 {[%clk 0:00:06]} 70. Kg4 {[%clk 0:00:12]}  Rg5+ {[%clk 0:00:07]} 71. Kh4 {[%clk 0:00:12]}  Kg8 {[%clk 0:00:07]} 72. Rb7 {[%clk 0:00:12]}  Kf8 {[%clk 0:00:08]} 73. Ra7 {[%clk 0:00:12]}  Re5 {[%clk 0:00:07]} 74. Rb7 {[%clk 0:00:13]}  Re4+ {[%clk 0:00:07]} 75. Kg3 {[%clk 0:00:13]}  Re7 {[%clk 0:00:08]} 76. Rb6 {[%clk 0:00:13]}  Kf7 {[%clk 0:00:08]} 77. Kg4 {[%clk 0:00:13]}  Re4+ {[%clk 0:00:08]} 78. Kg3 {[%clk 0:00:13]}  Re6 {[%clk 0:00:08]} 79. Rb5 {[%clk 0:00:13]}  Kf6 {[%clk 0:00:08]} 80. Kf4 {[%clk 0:00:14]}  Rc6 {[%clk 0:00:07]} 81. Rb4 {[%clk 0:00:12]}  Ke6 {[%clk 0:00:06]} 82. Ra4 {[%clk 0:00:12]}  Rd6 {[%clk 0:00:06]} 83. Kg4 {[%clk 0:00:12]}  Ke5 {[%clk 0:00:06]} 84. Ra7 {[%clk 0:00:12]}  Rd4+ {[%clk 0:00:05]} 85. Kg3 {[%clk 0:00:13]}  Kf6 {[%clk 0:00:03]} 86. Ra6+ {[%clk 0:00:09]}  Kf5 {[%clk 0:00:03]} 87. Ra5+ {[%clk 0:00:09]}  Ke6 {[%clk 0:00:02]} 88. Ra7 {[%clk 0:00:08]}  Rd7 {[%clk 0:00:03]} 89. Ra6+ {[%clk 0:00:08]}  Rd6 {[%clk 0:00:03]} 90. Ra5 {[%clk 0:00:08]}  Kf6 {[%clk 0:00:03]} 91. Kg4 {[%clk 0:00:08]}  Rd4+ {[%clk 0:00:03]} 92. Kg3 {[%clk 0:00:09]}  Rc4 {[%clk 0:00:03]} 93. Rb5 {[%clk 0:00:09]}  Rd4 {[%clk 0:00:03]} 94. Ra5 {[%clk 0:00:09]}  Re4 {[%clk 0:00:03]} 95. Ra6+ {[%clk 0:00:06]}  Re6 {[%clk 0:00:03]} 96. Ra5 {[%clk 0:00:06]}  Re5 {[%clk 0:00:03]} 97. Ra6+ {[%clk 0:00:07]}  Kg5 {[%clk 0:00:04]} 98. Rg6+ {[%clk 0:00:07]}  Kxh5 {[%clk 0:00:04]} 99. Rxg7 {[%clk 0:00:08]}  Rg5+ {[%clk 0:00:03]} 100. Rxg5+ {[%clk 0:00:08]}  hxg5 {[%clk 0:00:03]} 101. Kh3 {[%clk 0:00:09]}  g4+ {[%clk 0:00:04]} 102. Kg3 {[%clk 0:00:09]}  Kg5 {[%clk 0:00:05]} 103. Kg2 {[%clk 0:00:10]}  Kf4 {[%clk 0:00:05]} 104. Kf2 {[%clk 0:00:11]}  g3+ {[%clk 0:00:06]} 105. Kg2 {[%clk 0:00:11]}  Kg4 {[%clk 0:00:07]} 106. Kg1 {[%clk 0:00:12]}  Kh4 {[%clk 0:00:08]} 107. Kg2 {[%clk 0:00:12]}  Kg4 {[%clk 0:00:08]} 108. Kg1 {[%clk 0:00:13]}  Kh3 {[%clk 0:00:09]} 109. Kh1 {[%clk 0:00:13]}  g2+ {[%clk 0:00:10]} 110. Kg1 {[%clk 0:00:14]}  Kg3 {[%clk 0:00:11]} 1/2-1/2


[Site "https://www.chess.com"]

[Event "Titled Tuesday Blitz April 12 Late 2022"]
[White "Plazuelo Pascual, Juan"]
[Black "Aldokhin, Ivan"]
[WhiteFideId "32059566"]
[BlackFideId "24115720"]
[WhiteElo "2561"]
[BlackElo "2702"]
[Result "1-0"]
[Round "06"]
[TimeControl "180+1"]
[Date "2022.04.13"]
[WhiteClock "0:00:27"]
[BlackClock "0:00:08"]

1. d4 {[%clk 0:02:57]}  Nf6 {[%clk 0:02:59]} 2. c4 {[%clk 0:02:57]}  g6 {[%clk 0:03:00]} 3. Nc3 {[%clk 0:02:57]}  Bg7 {[%clk 0:03:01]} 4. e4 {[%clk 0:02:57]}  d6 {[%clk 0:03:02]} 5. f3 {[%clk 0:02:58]}  O-O {[%clk 0:03:02]} 6. Be3 {[%clk 0:02:58]}  c5 {[%clk 0:03:02]} 7. dxc5 {[%clk 0:02:59]}  dxc5 {[%clk 0:03:02]} 8. Qxd8 {[%clk 0:03:00]}  Rxd8 {[%clk 0:03:02]} 9. Bxc5 {[%clk 0:03:00]}  Nc6 {[%clk 0:03:02]} 10. Be3 {[%clk 0:03:01]}  Nd7 {[%clk 0:02:47]} 11. O-O-O {[%clk 0:03:00]}  b6 {[%clk 0:02:40]} 12. Nge2 {[%clk 0:02:53]}  Ba6 {[%clk 0:02:30]} 13. Nd4 {[%clk 0:02:53]}  Nde5 {[%clk 0:01:41]} 14. Ndb5 {[%clk 0:02:52]}  Rxd1+ {[%clk 0:01:36]} 15. Kxd1 {[%clk 0:02:52]}  Rd8+ {[%clk 0:01:23]} 16. Kc1 {[%clk 0:02:38]}  Nb4 {[%clk 0:01:23]} 17. Be2 {[%clk 0:02:28]}  Nbd3+ {[%clk 0:01:11]} 18. Bxd3 {[%clk 0:02:09]}  Rxd3 {[%clk 0:01:10]} 19. Bd4 {[%clk 0:01:51]}  Bxb5 {[%clk 0:00:44]} 20. Nxb5 {[%clk 0:01:51]}  a6 {[%clk 0:00:44]} 21. Bxe5 {[%clk 0:01:50]}  Bxe5 {[%clk 0:00:43]} 22. Na3 {[%clk 0:01:43]}  Bf4+ {[%clk 0:00:36]} 23. Kb1 {[%clk 0:01:41]}  Rd2 {[%clk 0:00:36]} 24. g3 {[%clk 0:01:41]}  Be5 {[%clk 0:00:36]} 25. Nc2 {[%clk 0:01:40]}  h5 {[%clk 0:00:33]} 26. f4 {[%clk 0:01:40]}  Bd6 {[%clk 0:00:29]} 27. Kc1 {[%clk 0:01:28]}  Rg2 {[%clk 0:00:25]} 28. b4 {[%clk 0:01:18]}  a5 {[%clk 0:00:22]} 29. a3 {[%clk 0:01:19]}  f6 {[%clk 0:00:19]} 30. c5 {[%clk 0:00:52]}  bxc5 {[%clk 0:00:18]} 31. bxa5 {[%clk 0:00:52]}  c4 {[%clk 0:00:19]} 32. a6 {[%clk 0:00:51]}  Bc5 {[%clk 0:00:18]} 33. Rd1 {[%clk 0:00:48]}  c3 {[%clk 0:00:15]} 34. Kb1 {[%clk 0:00:30]}  Kf7 {[%clk 0:00:15]} 35. Rd7 {[%clk 0:00:30]}  Ke6 {[%clk 0:00:14]} 36. a7 {[%clk 0:00:30]}  Bxa7 {[%clk 0:00:08]} 37. Rxa7 {[%clk 0:00:31]}  Rxh2 {[%clk 0:00:08]} 38. Rc7 {[%clk 0:00:30]}  g5 {[%clk 0:00:06]} 39. fxg5 {[%clk 0:00:30]}  fxg5 {[%clk 0:00:06]} 40. Rxc3 {[%clk 0:00:30]}  Ke5 {[%clk 0:00:07]} 41. Rc5+ {[%clk 0:00:30]}  Kf6 {[%clk 0:00:06]} 42. a4 {[%clk 0:00:28]}  h4 {[%clk 0:00:06]} 43. gxh4 {[%clk 0:00:29]}  gxh4 {[%clk 0:00:07]} 44. a5 {[%clk 0:00:29]}  h3 {[%clk 0:00:07]} 45. Rh5 {[%clk 0:00:27]}  Kg6 {[%clk 0:00:06]} 46. Rh8 {[%clk 0:00:26]}  Kg7 {[%clk 0:00:05]} 47. Rh4 {[%clk 0:00:26]}  Re2 {[%clk 0:00:04]} 48. Rxh3 {[%clk 0:00:26]}  Rxe4 {[%clk 0:00:04]} 49. Ra3 {[%clk 0:00:26]}  Rh4 {[%clk 0:00:04]} 50. a6 {[%clk 0:00:27]}  Rh8 {[%clk 0:00:05]} 51. a7 {[%clk 0:00:27]}  Ra8 {[%clk 0:00:06]} 52. Ne3 {[%clk 0:00:26]}  Kf6 {[%clk 0:00:07]} 53. Nc4 {[%clk 0:00:27]}  Ke6 {[%clk 0:00:07]} 54. Nb6 {[%clk 0:00:27]}  Rxa7 {[%clk 0:00:07]} 55. Rxa7 {[%clk 0:00:28]}  Kd6 {[%clk 0:00:08]} 56. Nc8+ {[%clk 0:00:27]} 1-0


[Site "https://www.chess.com"]

[Event "Titled Tuesday Blitz April 12 Late 2022"]
[White "Prohorov, Olexandr"]
[Black "Yedidia, Daniel"]
[WhiteFideId "14105578"]
[BlackFideId "30905907"]
[WhiteElo "1993"]
[BlackElo "2597"]
[Result "0-1"]
[Round "06"]
[TimeControl "180+1"]
[Date "2022.04.13"]
[WhiteClock "0:00:03"]
[BlackClock "0:00:31"]

1. Nf3 {[%clk 0:03:00]}  Nf6 {[%clk 0:03:00]} 2. c4 {[%clk 0:02:59]}  g6 {[%clk 0:02:57]} 3. Nc3 {[%clk 0:02:57]}  Bg7 {[%clk 0:02:57]} 4. d4 {[%clk 0:02:58]}  d5 {[%clk 0:02:57]} 5. cxd5 {[%clk 0:02:57]}  Nxd5 {[%clk 0:02:57]} 6. Na4 {[%clk 0:02:57]}  O-O {[%clk 0:02:53]} 7. e4 {[%clk 0:02:57]}  Nb6 {[%clk 0:02:54]} 8. Be3 {[%clk 0:02:53]}  Bg4 {[%clk 0:02:47]} 9. Be2 {[%clk 0:02:53]}  Nc6 {[%clk 0:02:45]} 10. d5 {[%clk 0:02:45]}  Ne5 {[%clk 0:02:38]} 11. Nc5 {[%clk 0:02:36]}  Nxf3+ {[%clk 0:02:35]} 12. gxf3 {[%clk 0:02:32]}  Bc8 {[%clk 0:02:34]} 13. Qd2 {[%clk 0:02:31]}  Nd7 {[%clk 0:02:28]} 14. h4 {[%clk 0:02:19]}  h5 {[%clk 0:02:23]} 15. Nd3 {[%clk 0:01:52]}  c6 {[%clk 0:02:15]} 16. dxc6 {[%clk 0:01:51]}  bxc6 {[%clk 0:02:16]} 17. Rc1 {[%clk 0:01:45]}  Qc7 {[%clk 0:02:03]} 18. Bf4 {[%clk 0:01:33]}  Qb7 {[%clk 0:01:59]} 19. b3 {[%clk 0:01:25]}  a5 {[%clk 0:01:58]} 20. O-O {[%clk 0:01:19]}  a4 {[%clk 0:01:58]} 21. b4 {[%clk 0:01:13]}  a3 {[%clk 0:01:58]} 22. Bh6 {[%clk 0:01:10]}  Rd8 {[%clk 0:01:51]} 23. Bxg7 {[%clk 0:01:05]}  Kxg7 {[%clk 0:01:51]} 24. Nc5 {[%clk 0:01:01]}  Qc7 {[%clk 0:01:47]} 25. Rfd1 {[%clk 0:00:58]}  Ra7 {[%clk 0:01:27]} 26. Nb3 {[%clk 0:00:48]}  e5 {[%clk 0:01:12]} 27. Qd6 {[%clk 0:00:36]}  Qxd6 {[%clk 0:01:04]} 28. Rxd6 {[%clk 0:00:35]}  Re8 {[%clk 0:00:56]} 29. Rdxc6 {[%clk 0:00:24]}  Ra8 {[%clk 0:00:52]} 30. Kg2 {[%clk 0:00:14]}  Nf8 {[%clk 0:00:52]} 31. b5 {[%clk 0:00:13]}  Ne6 {[%clk 0:00:52]} 32. b6 {[%clk 0:00:13]}  Bb7 {[%clk 0:00:49]} 33. Rd6 {[%clk 0:00:10]}  Re7 {[%clk 0:00:42]} 34. Bb5 {[%clk 0:00:09]}  Nf4+ {[%clk 0:00:39]} 35. Kg3 {[%clk 0:00:08]}  Ba6 {[%clk 0:00:38]} 36. Bxa6 {[%clk 0:00:08]}  Rxa6 {[%clk 0:00:39]} 37. Rc7 {[%clk 0:00:06]}  Rxb6 {[%clk 0:00:36]} 38. Rxe7 {[%clk 0:00:05]}  Rxd6 {[%clk 0:00:36]} 39. Ra7 {[%clk 0:00:04]}  Rd1 {[%clk 0:00:31]} 40. Rxa3 {[%clk 0:00:03]}  Rh1 {[%clk 0:00:31]} 0-1


[Site "https://www.chess.com"]

[Event "Titled Tuesday Blitz April 12 Late 2022"]
[White "Romanchuk, Viktor"]
[Black "Grave, Jacob Templen"]
[WhiteFideId "14109271"]
[BlackFideId "1542656"]
[WhiteElo "2242"]
[BlackElo "1737"]
[Result "1-0"]
[Round "06"]
[TimeControl "180+1"]
[Date "2022.04.13"]
[WhiteClock "0:00:23"]
[BlackClock "0:00:01"]

1. d4 {[%clk 0:03:00]}  Nf6 {[%clk 0:02:54]} 2. c4 {[%clk 0:03:00]}  e6 {[%clk 0:02:51]} 3. Nc3 {[%clk 0:03:00]}  Bb4 {[%clk 0:02:50]} 4. e3 {[%clk 0:03:00]}  b6 {[%clk 0:02:47]} 5. Ne2 {[%clk 0:03:00]}  c5 {[%clk 0:02:45]} 6. a3 {[%clk 0:03:00]}  Ba5 {[%clk 0:02:44]} 7. Rb1 {[%clk 0:02:59]}  Na6 {[%clk 0:02:40]} 8. g3 {[%clk 0:03:00]}  Bb7 {[%clk 0:02:37]} 9. d5 {[%clk 0:03:01]}  exd5 {[%clk 0:02:33]} 10. Bg2 {[%clk 0:03:01]}  O-O {[%clk 0:02:32]} 11. O-O {[%clk 0:03:02]}  Bxc3 {[%clk 0:02:22]} 12. Nxc3 {[%clk 0:03:01]}  Nc7 {[%clk 0:02:21]} 13. cxd5 {[%clk 0:02:57]}  d6 {[%clk 0:02:19]} 14. b4 {[%clk 0:02:55]}  Rb8 {[%clk 0:02:13]} 15. e4 {[%clk 0:02:44]}  Re8 {[%clk 0:01:56]} 16. h3 {[%clk 0:02:39]}  a6 {[%clk 0:01:42]} 17. bxc5 {[%clk 0:02:26]}  bxc5 {[%clk 0:01:41]} 18. Rb6 {[%clk 0:02:26]}  Nb5 {[%clk 0:01:39]} 19. Na4 {[%clk 0:01:59]}  Nc3 {[%clk 0:01:31]} 20. Qb3 {[%clk 0:01:54]}  Nxa4 {[%clk 0:01:05]} 21. Rxb7 {[%clk 0:01:53]}  Rxb7 {[%clk 0:01:05]} 22. Qxb7 {[%clk 0:01:54]}  Nxe4 {[%clk 0:01:00]} 23. Qxa6 {[%clk 0:01:54]}  Nac3 {[%clk 0:01:00]} 24. Re1 {[%clk 0:01:46]}  h6 {[%clk 0:00:48]} 25. Qc4 {[%clk 0:01:38]}  Nxg3 {[%clk 0:00:26]} 26. Qxc3 {[%clk 0:01:11]}  Ne2+ {[%clk 0:00:25]} 27. Rxe2 {[%clk 0:01:11]}  Rxe2 {[%clk 0:00:25]} 28. Bf4 {[%clk 0:01:02]}  Qe7 {[%clk 0:00:20]} 29. Bf3 {[%clk 0:00:55]}  Ra2 {[%clk 0:00:18]} 30. Kg2 {[%clk 0:00:50]}  Qc7 {[%clk 0:00:12]} 31. Qb3 {[%clk 0:00:46]}  Ra1 {[%clk 0:00:11]} 32. a4 {[%clk 0:00:43]}  c4 {[%clk 0:00:11]} 33. Qc2 {[%clk 0:00:37]}  c3 {[%clk 0:00:09]} 34. h4 {[%clk 0:00:35]}  Qc4 {[%clk 0:00:05]} 35. Bxd6 {[%clk 0:00:35]}  Qxh4 {[%clk 0:00:02]} 36. Qxc3 {[%clk 0:00:31]}  Qh1+ {[%clk 0:00:02]} 37. Kg3 {[%clk 0:00:31]}  Rg1+ {[%clk 0:00:03]} 38. Kf4 {[%clk 0:00:31]}  Qh4+ {[%clk 0:00:02]} 39. Ke3 {[%clk 0:00:30]}  Qg5+ {[%clk 0:00:01]} 40. Bf4 {[%clk 0:00:29]}  Qe7+ {[%clk 0:00:02]} 41. Kd3 {[%clk 0:00:26]}  Re1 {[%clk 0:00:01]} 42. Be3 {[%clk 0:00:25]}  Qa7 {[%clk 0:00:01]} 43. Bxa7 {[%clk 0:00:23]} 1-0


[Site "https://www.chess.com"]